[Event "SELL Games"]
[Site "Tartu, Estonia"]
[Date "2023.05.19"]
[Round "5.5"]
[White "Bekasovs, Rihards"]
[Black "Vanagas, Tadas"]
[Result "1-0"]
[TimeControl "15min + 10sec per move each"]
[WhiteFideId "11606029"]
[BlackFideId "12805467"]
[WhiteElo "2107"]
[BlackElo "2225"]

1. Nf3 {[%clk 00:15:18]} {[%emt 00:00:02]} Nf6 {[%clk 00:15:17]} {[%emt
00:00:03]} 2. c4 {[%clk 00:15:22]} {[%emt 00:00:07]} g6 {[%clk 00:15:24]}
{[%emt 00:00:02]} 3. b3 {[%clk 00:15:25]} {[%emt 00:00:07]} Bg7 {[%clk
00:15:32]} {[%emt 00:00:02]} 4. Bb2 {[%clk 00:15:34]} {[%emt 00:00:02]} O-O
{[%clk 00:15:40]} {[%emt 00:00:01]} 5. g3 {[%clk 00:15:43]} {[%emt 00:00:02]}
c6 {[%clk 00:15:39]} {[%emt 00:00:10]} 6. Bg2 {[%clk 00:15:48]} {[%emt
00:00:05]} d5 {[%clk 00:15:48]} 7. O-O {[%clk 00:15:56]} {[%emt 00:00:03]} a5
{[%clk 00:15:54]} {[%emt 00:00:05]} 8. cxd5 {[%clk 00:13:48]} {[%emt 00:02:17]}
cxd5 {[%clk 00:15:19]} {[%emt 00:00:45]} 9. Nc3 {[%clk 00:13:37]} {[%emt
00:00:21]} d4 {[%clk 00:14:54]} {[%emt 00:00:35]} 10. Nb5 {[%clk 00:13:34]}
{[%emt 00:00:13]} d3 {[%clk 00:14:59]} {[%emt 00:00:05]} 11. e3 {[%clk
00:13:27]} {[%emt 00:00:17]} Nc6 {[%clk 00:14:52]} {[%emt 00:00:18]} 12. Ne5
{[%clk 00:12:36]} {[%emt 00:01:00]} Bf5 {[%clk 00:10:23]} {[%emt 00:04:38]} 13.
Nxc6 {[%clk 00:11:54]} {[%emt 00:00:52]} bxc6 {[%clk 00:10:33]} 14. Nd4 {[%clk
00:11:02]} {[%emt 00:01:03]} Be4 {[%clk 00:09:40]} {[%emt 00:01:02]} 15. Nxc6
{[%clk 00:10:57]} {[%emt 00:00:15]} Qd6 {[%clk 00:09:34]} {[%emt 00:00:16]} 16.
Bxf6 {[%clk 00:05:56]} {[%emt 00:05:10]} Qxc6 {[%emt 00:01:56]} 17. Bxg7 {[%clk
00:04:42]} {[%emt 00:01:24]} Bxg2 {[%clk 00:05:52]} {[%emt 00:02:07]} 18. Bxf8
{[%clk 00:03:51]} {[%emt 00:01:01]} Bf3 {[%clk 00:05:58]} {[%emt 00:00:03]} 19.
Rc1 {[%clk 00:03:29]} {[%emt 00:00:33]} Qd5 {[%clk 00:02:54]} {[%emt 00:03:14]}
20. Bxe7 {[%clk 00:00:37]} {[%emt 00:03:02]} Bxd1 {[%clk 00:02:37]} {[%emt
00:00:26]} 21. Rfxd1 {[%clk 00:00:47]} Qd7 {[%clk 00:01:58]} {[%emt 00:00:49]}
22. Bf6 {[%clk 00:00:45]} {[%emt 00:00:12]} Rc8 {[%clk 00:01:58]} {[%emt
00:00:10]} 23. Rxc8+ {[%clk 00:00:22]} {[%emt 00:00:33]} Qxc8 {[%clk 00:02:07]}
{[%emt 00:00:01]} 24. Bc3 {[%clk 00:00:32]} Qc5 {[%clk 00:01:56]} {[%emt
00:00:20]} 25. Rb1 {[%clk 00:00:32]} {[%emt 00:00:10]} Qa3 {[%clk 00:01:23]}
{[%emt 00:00:44]} 26. b4 {[%clk 00:00:36]} {[%emt 00:00:06]} Qxa2 {[%clk
00:00:53]} {[%emt 00:00:40]} 27. Ra1 {[%clk 00:00:39]} {[%emt 00:00:07]} Qc4
{[%clk 00:00:30]} {[%emt 00:00:33]} 28. bxa5 {[%clk 00:00:36]} {[%emt
00:00:13]} Qa6 {[%clk 00:00:36]} {[%emt 00:00:03]} 29. Rb1 {[%clk 00:00:45]}
{[%emt 00:00:02]} f5 {[%clk 00:00:31]} {[%emt 00:00:15]} 30. Rb6 {[%clk
00:00:27]} {[%emt 00:00:28]} Qa7 {[%clk 00:00:37]} {[%emt 00:00:04]} 31. Rd6
{[%clk 00:00:14]} {[%emt 00:00:23]} g5 {[%clk 00:00:16]} {[%emt 00:00:32]} 32.
a6 {[%clk 00:00:15]} {[%emt 00:00:09]} g4 {[%clk 00:00:25]} 33. Bd4 {[%clk
00:00:14]} {[%emt 00:00:11]} Qc7 {[%clk 00:00:15]} {[%emt 00:00:20]} 34. a7
{[%clk 00:00:21]} {[%emt 00:00:03]} Qxd6 {[%clk 00:00:17]} {[%emt 00:00:08]} 35.
a8=Q+ {[%clk 00:00:29]} {[%emt 00:00:02]} Kf7 {[%clk 00:00:25]} {[%emt
00:00:01]} 36. Qb7+ {[%clk 00:00:32]} {[%emt 00:00:08]} 1-0

[Event "SELL Games"]
[Site "Tartu, Estonia"]
[Date "2023.05.19"]
[Round "5.6"]
[White "Maciuityte, Greta"]
[Black "Vaskevicius, Augustas"]
[Result "0-1"]
[TimeControl "15min + 10sec per move each"]
[WhiteFideId "12806765"]
[BlackFideId "12808008"]
[WhiteElo "1715"]
[BlackElo "1904"]

1. e4 {[%clk 00:15:18]} {[%emt 00:00:02]} c5 {[%clk 00:15:18]} {[%emt
00:00:03]} 2. d4 {[%clk 00:15:26]} {[%emt 00:00:01]} cxd4 {[%clk 00:15:16]}
{[%emt 00:00:11]} 3. c3 {[%clk 00:15:34]} {[%emt 00:00:02]} g6 {[%clk
00:15:00]} {[%emt 00:00:27]} 4. cxd4 {[%clk 00:15:42]} {[%emt 00:00:02]} d5
{[%clk 00:15:04]} {[%emt 00:00:05]} 5. e5 {[%clk 00:15:22]} {[%emt 00:00:30]}
Bg7 {[%clk 00:15:07]} {[%emt 00:00:07]} 6. Nc3 {[%clk 00:15:27]} {[%emt
00:00:04]} a6 {[%clk 00:15:01]} {[%emt 00:00:16]} 7. Nf3 {[%clk 00:15:35]}
{[%emt 00:00:02]} Bg4 {[%clk 00:14:50]} {[%emt 00:00:22]} 8. Be2 {[%clk
00:15:42]} {[%emt 00:00:03]} e6 {[%clk 00:14:49]} {[%emt 00:00:10]} 9. Qb3
{[%clk 00:14:36]} {[%emt 00:01:15]} Bxf3 {[%clk 00:12:41]} {[%emt 00:02:19]} 10.
Bxf3 {[%clk 00:13:53]} {[%emt 00:00:53]} Nc6 {[%clk 00:11:34]} {[%emt
00:01:17]} 11. Be3 {[%clk 00:13:02]} {[%emt 00:01:01]} b5 {[%clk 00:09:58]}
{[%emt 00:01:47]} 12. Nxd5 {[%clk 00:07:41]} {[%emt 00:05:30]} Na5 {[%clk
00:09:02]} {[%emt 00:01:06]} 13. Qc3 {[%clk 00:06:46]} {[%emt 00:01:05]} exd5
{[%clk 00:08:29]} {[%emt 00:00:44]} 14. Bd2 {[%clk 00:06:49]} {[%emt 00:00:06]}
Nc4 {[%clk 00:05:13]} {[%emt 00:03:26]} 15. Bf4 {[%clk 00:06:10]} {[%emt
00:00:50]} Ne7 {[%clk 00:04:46]} {[%emt 00:00:37]} 16. b3 {[%clk 00:05:55]}
{[%emt 00:00:24]} Qa5 {[%clk 00:04:08]} {[%emt 00:00:49]} 17. b4 {[%clk
00:04:28]} {[%emt 00:01:37]} Qa3 {[%clk 00:03:21]} {[%emt 00:00:57]} 18. Qxa3
{[%clk 00:04:29]} {[%emt 00:00:09]} Nxa3 {[%clk 00:03:30]} {[%emt 00:00:01]} 19.
Rc1 {[%clk 00:04:37]} {[%emt 00:00:01]} Nc4 {[%clk 00:03:31]} {[%emt 00:00:09]}
20. O-O {[%clk 00:04:32]} {[%emt 00:00:15]} O-O {[%clk 00:03:30]} {[%emt
00:00:11]} 21. Bg5 {[%clk 00:04:34]} {[%emt 00:00:08]} f6 {[%clk 00:03:38]}
{[%emt 00:00:02]} 22. exf6 {[%clk 00:02:59]} {[%emt 00:01:45]} Bxf6 {[%clk
00:03:47]} {[%emt 00:00:02]} 23. Bh6 {[%clk 00:03:05]} {[%emt 00:00:04]} Rfd8
{[%clk 00:03:24]} {[%emt 00:00:33]} 24. Rfe1 {[%clk 00:03:04]} {[%emt
00:00:11]} Nf5 {[%clk 00:03:05]} {[%emt 00:00:28]} 25. Be3 {[%clk 00:01:54]}
{[%emt 00:01:20]} Bxd4 {[%clk 00:02:29]} {[%emt 00:00:47]} 26. Bg5 {[%clk
00:01:16]} {[%emt 00:00:47]} Rd7 {[%clk 00:01:38]} {[%emt 00:01:01]} 27. Red1
{[%clk 00:01:19]} {[%emt 00:00:07]} Ne5 {[%clk 00:01:21]} {[%emt 00:00:27]} 28.
Be2 {[%clk 00:01:00]} {[%emt 00:00:29]} Nf7 {[%clk 00:01:20]} {[%emt 00:00:11]}
29. Bf4 {[%clk 00:00:50]} {[%emt 00:00:20]} Be5 {[%clk 00:01:08]} {[%emt
00:00:22]} 30. Bd2 {[%clk 00:00:49]} {[%emt 00:00:10]} Rad8 {[%clk 00:01:01]}
{[%emt 00:00:18]} 31. Bg4 {[%clk 00:00:15]} {[%emt 00:00:44]} h5 {[%clk
00:00:51]} {[%emt 00:00:20]} 32. Bf3 {[%clk 00:00:24]} {[%emt 00:00:01]} Nd4
{[%clk 00:00:55]} {[%emt 00:00:06]} 33. Be3 {[%clk 00:00:32]} {[%emt 00:00:03]}
Nxf3+ {[%clk 00:01:03]} {[%emt 00:00:02]} 34. gxf3 {[%clk 00:00:40]} {[%emt
00:00:01]} d4 {[%clk 00:01:01]} {[%emt 00:00:12]} 35. Bd2 {[%clk 00:00:46]}
{[%emt 00:00:04]} Rc7 {[%clk 00:01:09]} {[%emt 00:00:02]} 36. Rxc7 {[%clk
00:00:45]} {[%emt 00:00:11]} Bxc7 {[%clk 00:01:18]} {[%emt 00:00:02]} 37. Rc1
{[%clk 00:00:54]} Be5 {[%clk 00:01:12]} {[%emt 00:00:16]} 38. Rc6 {[%clk
00:01:01]} {[%emt 00:00:03]} Rd6 {[%clk 00:01:21]} 39. Rc8+ {[%clk 00:01:08]}
{[%emt 00:00:04]} Kg7 {[%clk 00:01:29]} {[%emt 00:00:02]} 40. f4 {[%clk
00:01:14]} {[%emt 00:00:03]} Bf6 {[%clk 00:01:36]} {[%emt 00:00:03]} 41. a3
{[%clk 00:01:21]} {[%emt 00:00:03]} d3 {[%clk 00:01:38]} {[%emt 00:00:09]} 42.
Kf1 {[%clk 00:01:26]} {[%emt 00:00:05]} Re6 {[%clk 00:01:35]} {[%emt 00:00:13]}
43. Be3 {[%clk 00:01:17]} {[%emt 00:00:19]} Rd6 {[%clk 00:01:25]} {[%emt
00:00:19]} 44. Bd2 {[%clk 00:01:26]} {[%emt 00:00:02]} Nd8 {[%clk 00:01:25]}
{[%emt 00:00:09]} 45. Rc7+ {[%clk 00:01:28]} {[%emt 00:00:09]} Kg8 {[%clk
00:01:21]} {[%emt 00:00:14]} 46. f5 {[%clk 00:01:17]} {[%emt 00:00:21]} gxf5
{[%clk 00:01:14]} {[%emt 00:00:17]} 47. Rc5 {[%clk 00:01:25]} {[%emt 00:00:01]}
Ne6 {[%clk 00:01:03]} {[%emt 00:00:22]} 48. Rxf5 {[%clk 00:01:32]} {[%emt
00:00:04]} Nd4 {[%clk 00:01:04]} {[%emt 00:00:08]} 49. Rc5 {[%clk 00:00:35]}
{[%emt 00:01:07]} Nf3 {[%clk 00:01:02]} {[%emt 00:00:12]} 50. Rc8+ {[%clk
00:00:43]} {[%emt 00:00:02]} Kf7 {[%clk 00:01:09]} {[%emt 00:00:04]} 51. Rc7+
{[%clk 00:00:49]} {[%emt 00:00:03]} Kg6 {[%clk 00:01:18]} {[%emt 00:00:01]} 52.
Bf4 {[%clk 00:00:28]} {[%emt 00:00:32]} d2 {[%clk 00:01:19]} {[%emt 00:00:08]}
0-1

[Event "SELL Games"]
[Site "Tartu, Estonia"]
[Date "2023.05.19"]
[Round "5.7"]
[White "Sibajeva, Marija"]
[Black "Galdikaite, Greta"]
[Result "1-0"]
[TimeControl "15min + 10sec per move each"]
[WhiteTitle "WFM"]
[WhiteFideId "12807583"]
[BlackFideId "12819956"]
[WhiteElo "1953"]
[BlackElo "1195"]

1. e4 {[%clk 00:15:19]} {[%emt 00:02:26]} e5 {[%clk 00:15:18]} {[%emt
00:00:02]} 2. Nf3 {[%clk 00:15:29]} {[%emt 00:00:01]} Nc6 {[%clk 00:15:27]} 3.
Bc4 {[%clk 00:15:38]} {[%emt 00:00:01]} Bc5 {[%clk 00:15:21]} {[%emt 00:00:16]}
4. O-O {[%clk 00:15:44]} {[%emt 00:00:04]} d6 {[%clk 00:14:41]} {[%emt
00:00:50]} 5. d3 {[%clk 00:15:18]} {[%emt 00:00:36]} Bg4 {[%clk 00:14:35]}
{[%emt 00:00:16]} 6. c3 {[%clk 00:15:16]} {[%emt 00:00:11]} h6 {[%clk
00:14:29]} {[%emt 00:00:17]} 7. Nbd2 {[%clk 00:15:23]} {[%emt 00:00:03]} Nf6
{[%clk 00:13:34]} {[%emt 00:01:05]} 8. Re1 {[%clk 00:15:23]} {[%emt 00:00:05]}
O-O {[%clk 00:10:25]} {[%emt 00:03:22]} 9. h3 {[%clk 00:15:12]} {[%emt
00:00:21]} Bh5 {[%clk 00:10:27]} {[%emt 00:00:08]} 10. Nf1 {[%clk 00:15:20]}
{[%emt 00:00:02]} Na5 {[%clk 00:09:37]} {[%emt 00:01:01]} 11. Bb5 {[%clk
00:15:05]} {[%emt 00:00:23]} Bb6 {[%clk 00:09:31]} {[%emt 00:00:19]} 12. Ng3
{[%clk 00:15:04]} {[%emt 00:00:11]} Bg6 {[%clk 00:09:30]} {[%emt 00:00:10]} 13.
Nh4 {[%clk 00:12:18]} {[%emt 00:02:52]} Bh7 {[%clk 00:08:34]} {[%emt 00:01:10]}
14. Ngf5 {[%clk 00:11:48]} {[%emt 00:00:39]} a6 {[%clk 00:07:59]} {[%emt
00:00:46]} 15. Ba4 {[%clk 00:11:54]} {[%emt 00:00:05]} Ba7 {[%clk 00:07:46]}
{[%emt 00:00:22]} 16. Qf3 {[%clk 00:11:33]} {[%emt 00:00:28]} b5 {[%clk
00:07:41]} {[%emt 00:00:19]} 17. Bd1 {[%clk 00:11:32]} {[%emt 00:00:09]} Nc6
{[%clk 00:07:49]} {[%emt 00:00:04]} 18. Qg3 {[%clk 00:11:32]} {[%emt 00:00:08]}
Ne8 {[%clk 00:05:53]} {[%emt 00:02:08]} 19. Bxh6 {[%clk 00:11:06]} {[%emt
00:00:35]} Qf6 {[%clk 00:03:51]} {[%emt 00:02:13]} 20. Bg5 {[%clk 00:10:33]}
{[%emt 00:00:42]} Qe6 {[%clk 00:03:56]} {[%emt 00:00:05]} 21. Bg4 {[%clk
00:10:13]} {[%emt 00:00:27]} Bxf5 {[%clk 00:03:38]} {[%emt 00:00:31]} 22. Bxf5
{[%clk 00:10:10]} {[%emt 00:00:13]} 1-0

[Event "SELL Games"]
[Site "Tartu, Estonia"]
[Date "2023.05.19"]
[Round "5.8"]
[White "Perminaite, Guoda"]
[Black "Mikelsons, Mikelis-Emils"]
[Result "0-1"]
[TimeControl "15min + 10sec per move each"]
[WhiteFideId "12808784"]
[BlackFideId "11607475"]
[WhiteElo "1725"]
[BlackElo "1877"]

1. e4 {[%clk 00:15:19]} e5 {[%clk 00:15:20]} {[%emt 00:00:01]} 2. Nf3 {[%clk
00:15:27]} Nc6 {[%clk 00:15:29]} {[%emt 00:00:02]} 3. Bb5 {[%clk 00:15:36]}
{[%emt 00:00:01]} f5 {[%clk 00:15:38]} {[%emt 00:00:01]} 4. d3 {[%clk
00:15:04]} {[%emt 00:00:41]} fxe4 {[%clk 00:15:46]} {[%emt 00:00:02]} 5. dxe4
{[%clk 00:15:12]} {[%emt 00:00:02]} Nf6 {[%clk 00:15:55]} {[%emt 00:00:01]} 6.
Nbd2 {[%clk 00:14:54]} {[%emt 00:00:28]} Bc5 {[%clk 00:15:22]} {[%emt
00:00:43]} 7. O-O {[%clk 00:14:57]} {[%emt 00:00:07]} d6 {[%clk 00:15:09]}
{[%emt 00:00:23]} 8. h3 {[%clk 00:14:33]} {[%emt 00:00:34]} O-O {[%clk
00:15:15]} {[%emt 00:00:04]} 9. Bc4+ {[%clk 00:14:28]} {[%emt 00:00:14]} Kh8
{[%clk 00:15:24]} {[%emt 00:00:02]} 10. Qe2 {[%clk 00:14:30]} {[%emt 00:00:06]}
Nh5 {[%clk 00:14:42]} {[%emt 00:00:54]} 11. Nb3 {[%clk 00:14:34]} {[%emt
00:00:06]} Ng3 {[%clk 00:14:46]} {[%emt 00:00:05]} 12. Qd3 {[%clk 00:13:15]}
{[%emt 00:01:28]} Nxf1 {[%clk 00:12:38]} {[%emt 00:02:18]} 13. Kxf1 {[%clk
00:13:10]} {[%emt 00:00:14]} Bb6 {[%clk 00:12:29]} {[%emt 00:00:20]} 14. Bg5
{[%clk 00:12:15]} {[%emt 00:01:04]} Qe8 {[%clk 00:12:37]} {[%emt 00:00:02]} 15.
a4 {[%clk 00:11:19]} {[%emt 00:01:07]} a5 {[%clk 00:12:43]} {[%emt 00:00:04]}
16. Bb5 {[%clk 00:11:18]} {[%emt 00:00:10]} Qh5 {[%clk 00:12:49]} {[%emt
00:00:05]} 17. h4 {[%clk 00:09:28]} {[%emt 00:02:01]} Bg4 {[%clk 00:12:07]}
{[%emt 00:00:53]} 18. Bxc6 {[%clk 00:08:08]} {[%emt 00:01:29]} Bxf3 {[%clk
00:10:43]} {[%emt 00:01:33]} 19. Bxb7 {[%clk 00:03:38]} {[%emt 00:04:41]} Bxg2+
{[%clk 00:09:58]} {[%emt 00:00:55]} 20. Kxg2 {[%clk 00:00:26]} {[%emt
00:03:22]} Qg4+ {[%clk 00:10:07]} {[%emt 00:00:01]} 21. Kh1 {[%clk 00:00:35]}
{[%emt 00:00:01]} Rf3 {[%clk 00:10:15]} {[%emt 00:00:02]} 22. Bxa8 {[%clk
00:00:39]} {[%emt 00:00:05]} Qh3+ {[%clk 00:10:07]} {[%emt 00:00:18]} 23. Kg1
{[%clk 00:00:47]} {[%emt 00:00:02]} Bxf2# {[%clk 00:10:15]} {[%emt 00:00:02]}
0-1

[Event "SELL Games"]
[Site "Tartu, Estonia"]
[Date "2023.05.20"]
[Round "6.1"]
[White "Obolonin, Filipp"]
[Black "Stauskas, Lukas"]
[Result "0-1"]
[TimeControl "15min + 10sec per move each"]
[WhiteFideId "4505549"]
[BlackFideId "12808148"]
[WhiteElo "2017"]
[BlackElo "2296"]

1. d4 {[%clk 00:13:22]} {[%emt 00:01:57]} d5 {[%clk 00:15:17]} {[%emt
00:00:04]} 2. Nf3 {[%clk 00:13:30]} {[%emt 00:00:02]} Nf6 {[%clk 00:15:23]}
{[%emt 00:00:04]} 3. g3 {[%clk 00:13:39]} e6 {[%clk 00:15:28]} {[%emt
00:00:04]} 4. Bg2 {[%clk 00:13:48]} b5 {[%clk 00:15:34]} {[%emt 00:00:04]} 5.
O-O {[%clk 00:13:56]} {[%emt 00:00:02]} Be7 {[%clk 00:15:14]} {[%emt 00:00:31]}
6. a4 {[%clk 00:13:29]} {[%emt 00:00:38]} b4 {[%clk 00:15:20]} {[%emt
00:00:03]} 7. c4 {[%clk 00:13:38]} {[%emt 00:00:01]} bxc3 {[%clk 00:15:25]}
{[%emt 00:00:04]} 8. bxc3 {[%clk 00:13:45]} {[%emt 00:00:04]} Ba6 {[%clk
00:15:06]} {[%emt 00:00:29]} 9. Nfd2 {[%clk 00:13:27]} {[%emt 00:00:28]} O-O
{[%clk 00:14:41]} {[%emt 00:00:35]} 10. Re1 {[%clk 00:13:36]} c5 {[%clk
00:14:28]} {[%emt 00:00:25]} 11. Ba3 {[%clk 00:13:18]} {[%emt 00:00:28]} cxd4
{[%clk 00:14:02]} {[%emt 00:00:35]} 12. cxd4 {[%clk 00:13:23]} {[%emt
00:00:05]} Nc6 {[%clk 00:13:49]} {[%emt 00:00:23]} 13. e3 {[%clk 00:13:30]}
{[%emt 00:00:04]} Nb4 {[%clk 00:12:42]} {[%emt 00:01:18]} 14. Bf1 {[%clk
00:13:09]} {[%emt 00:00:31]} Bxf1 {[%clk 00:12:47]} {[%emt 00:00:05]} 15. Rxf1
{[%clk 00:13:15]} {[%emt 00:00:03]} Qd7 {[%clk 00:12:27]} {[%emt 00:00:29]} 16.
Qb3 {[%clk 00:12:53]} {[%emt 00:00:32]} Rab8 {[%clk 00:12:08]} {[%emt
00:00:30]} 17. Nc3 {[%clk 00:12:30]} {[%emt 00:00:33]} Rfc8 {[%clk 00:11:41]}
{[%emt 00:00:36]} 18. Rfb1 {[%clk 00:11:45]} {[%emt 00:00:55]} a5 {[%clk
00:09:35]} {[%emt 00:02:16]} 19. Rb2 {[%clk 00:10:24]} {[%emt 00:01:31]} Rb6
{[%clk 00:07:56]} {[%emt 00:01:49]} 20. Nf3 {[%clk 00:09:04]} {[%emt 00:01:30]}
Qb7 {[%clk 00:07:37]} {[%emt 00:00:30]} 21. Nb5 {[%clk 00:08:57]} {[%emt
00:00:17]} Ne4 {[%clk 00:06:11]} {[%emt 00:01:36]} 22. Nd2 {[%clk 00:08:11]}
{[%emt 00:00:56]} Nxd2 {[%clk 00:05:53]} {[%emt 00:00:28]} 23. Rxd2 {[%clk
00:08:20]} {[%emt 00:00:02]} Rbc6 {[%clk 00:06:00]} {[%emt 00:00:03]} 24. Re2
{[%clk 00:07:29]} {[%emt 00:01:01]} Nc2 {[%clk 00:05:05]} {[%emt 00:01:05]} 25.
Rb1 {[%clk 00:06:43]} {[%emt 00:00:56]} Nb4 {[%clk 00:03:25]} {[%emt 00:01:49]}
26. Bxb4 {[%clk 00:06:49]} {[%emt 00:00:05]} Bxb4 {[%clk 00:03:33]} {[%emt
00:00:02]} 27. Rbb2 {[%clk 00:06:57]} {[%emt 00:00:02]} Qd7 {[%clk 00:03:05]}
{[%emt 00:00:39]} 28. Rbc2 {[%clk 00:07:04]} {[%emt 00:00:03]} Rc4 {[%clk
00:03:14]} {[%emt 00:00:01]} 29. e4 {[%clk 00:06:52]} {[%emt 00:00:22]} Rxc2
{[%clk 00:02:51]} {[%emt 00:00:33]} 30. Rxc2 {[%clk 00:07:00]} {[%emt
00:00:02]} dxe4 {[%clk 00:03:00]} {[%emt 00:00:01]} 31. Rc4 {[%clk 00:05:16]}
{[%emt 00:01:54]} h6 {[%clk 00:02:41]} {[%emt 00:00:28]} 32. Qc2 {[%clk
00:05:24]} {[%emt 00:00:01]} Rxc4 {[%clk 00:02:42]} {[%emt 00:00:09]} 33. Qxc4
{[%clk 00:05:33]} {[%emt 00:00:02]} Qd5 {[%clk 00:02:27]} {[%emt 00:00:25]} 34.
Qc8+ {[%clk 00:05:38]} {[%emt 00:00:06]} Kh7 {[%clk 00:02:35]} {[%emt
00:00:01]} 35. Qc2 {[%clk 00:05:46]} f5 {[%clk 00:02:36]} {[%emt 00:00:10]} 36.
Nc7 {[%clk 00:05:09]} {[%emt 00:00:47]} Qxd4 {[%clk 00:02:15]} {[%emt
00:00:31]} 37. Nxe6 {[%clk 00:05:18]} {[%emt 00:00:01]} Qc3 {[%clk 00:02:16]}
{[%emt 00:00:09]} 38. Qa2 {[%clk 00:04:41]} {[%emt 00:00:47]} e3 {[%clk
00:01:37]} {[%emt 00:00:49]} 39. Nf4 {[%clk 00:03:37]} {[%emt 00:01:14]} Qc1+
{[%clk 00:01:17]} {[%emt 00:00:30]} 40. Kg2 {[%clk 00:03:35]} {[%emt 00:00:12]}
Qc6+ {[%clk 00:01:25]} {[%emt 00:00:02]} 41. Kh3 {[%clk 00:03:13]} {[%emt
00:00:32]} exf2 {[%clk 00:01:28]} {[%emt 00:00:07]} 42. Qxf2 {[%clk 00:03:15]}
{[%emt 00:00:09]} Qxa4 {[%clk 00:01:37]} {[%emt 00:00:01]} 43. Qb6 {[%clk
00:02:36]} {[%emt 00:00:48]} Qe8 {[%clk 00:01:43]} {[%emt 00:00:03]} 44. Qa6
{[%clk 00:02:25]} {[%emt 00:00:22]} Qf7 {[%clk 00:01:47]} {[%emt 00:00:06]} 45.
Qb5 {[%clk 00:02:10]} {[%emt 00:00:24]} Qf6 {[%clk 00:01:35]} {[%emt 00:00:22]}
46. Nd5 {[%clk 00:02:16]} {[%emt 00:00:04]} Qe5 {[%clk 00:01:31]} {[%emt
00:00:14]} 47. Qc6 {[%clk 00:02:21]} {[%emt 00:00:04]} Qe4 {[%clk 00:01:04]}
{[%emt 00:00:37]} 48. Qd7 {[%clk 00:02:24]} {[%emt 00:00:08]} Qg4+ {[%clk
00:01:03]} {[%emt 00:00:11]} 49. Kg2 {[%clk 00:02:30]} {[%emt 00:00:03]} Qe2+
{[%clk 00:01:10]} {[%emt 00:00:02]} 50. Kh3 {[%clk 00:02:38]} {[%emt 00:00:03]}
Qe5 {[%clk 00:00:52]} {[%emt 00:00:28]} 51. Kg2 {[%clk 00:02:16]} {[%emt
00:00:32]} Bd2 {[%clk 00:00:44]} {[%emt 00:00:18]} 52. Ne7 {[%clk 00:02:12]}
{[%emt 00:00:14]} Qe2+ {[%clk 00:00:50]} {[%emt 00:00:04]} 53. Kh3 {[%clk
00:02:12]} {[%emt 00:00:10]} Qf1+ {[%clk 00:00:56]} {[%emt 00:00:04]} 0-1